[Event "*** Titled Tuesday Blitz"]
[Site "Chess.com"]
[Date "2020.04.07"]
[Round "1"]
[White "Megagigahiper3345"]
[Black "Mr_Sinigami"]
[Result "1-0"]
[WhiteElo "2298"]
[BlackElo "2603"]
[TimeControl "180+1"]
[EndTime "13:07:11 PDT"]
[Termination "Megagigahiper3345 won on time"]

1. d4 {[%clk 0:02:59.7]} 1... Nf6 {[%clk 0:01:56]} 2. c4 {[%clk 0:02:58.1]} 2...
g6 {[%clk 0:01:56.5]} 3. Nc3 {[%clk 0:02:57.8]} 3... Bg7 {[%clk 0:01:57.1]} 4.
e4 {[%clk 0:02:57.4]} 4... d6 {[%clk 0:01:57.7]} 5. Be2 {[%clk 0:02:57.8]} 5...
O-O {[%clk 0:01:58.1]} 6. Be3 {[%clk 0:02:58.5]} 6... e5 {[%clk 0:01:58]} 7. d5
{[%clk 0:02:58.3]} 7... a5 {[%clk 0:01:58.3]} 8. g4 {[%clk 0:02:56.7]} 8... Na6
{[%clk 0:01:58.4]} 9. h4 {[%clk 0:02:53.8]} 9... Nc5 {[%clk 0:01:58.1]} 10. Bf3
{[%clk 0:02:53.8]} 10... Ne8 {[%clk 0:01:49.8]} 11. h5 {[%clk 0:02:52.2]} 11...
f5 {[%clk 0:01:49.2]} 12. hxg6 {[%clk 0:02:50.7]} 12... fxe4 {[%clk 0:01:30.4]}
13. Nxe4 {[%clk 0:02:28.1]} 13... Nxe4 {[%clk 0:01:29.1]} 14. Bxe4 {[%clk
0:02:10.9]} 14... Nf6 {[%clk 0:01:28.2]} 15. gxh7+ {[%clk 0:01:52.6]} 15... Kh8
{[%clk 0:01:27.3]} 16. Bf5 {[%clk 0:01:53.2]} 16... Bxf5 {[%clk 0:01:17.6]} 17.
gxf5 {[%clk 0:01:54.1]} 17... e4 {[%clk 0:01:17.5]} 18. Nh3 {[%clk 0:01:48.8]}
18... Qd7 {[%clk 0:01:08.2]} 19. Qe2 {[%clk 0:01:20.8]} 19... Qxf5 {[%clk
0:01:05.8]} 20. O-O-O {[%clk 0:01:21.4]} 20... Ng4 {[%clk 0:01:02.7]} 21. Nf4
{[%clk 0:01:14.4]} 21... Be5 {[%clk 0:00:49]} 22. Rh5 {[%clk 0:01:05.9]} 22...
Nxe3 {[%clk 0:00:18.1]} 23. Rxf5 {[%clk 0:00:50.8]} 23... Nxf5 {[%clk
0:00:18.1]} 24. Ng6+ {[%clk 0:00:46.4]} 24... Kg7 {[%clk 0:00:16.5]} 25. Nxf8
{[%clk 0:00:44.2]} 25... Rxf8 {[%clk 0:00:17.4]} 26. Rh1 {[%clk 0:00:36.8]}
26... Kh8 {[%clk 0:00:16]} 27. Qxe4 {[%clk 0:00:33.2]} 27... Nd4 {[%clk
0:00:12.5]} 28. Rg1 {[%clk 0:00:27.7]} 28... a4 {[%clk 0:00:07.2]} 29. Kd1
{[%clk 0:00:18.6]} 1-0

[Event "*** Titled Tuesday Blitz"]
[Site "Chess.com"]
[Date "2020.04.07"]
[Round "1"]
[White "Azerichess"]
[Black "Frogo47"]
[Result "1-0"]
[WhiteElo "3001"]
[BlackElo "2486"]
[TimeControl "180+1"]
[EndTime "13:07:13 PDT"]
[Termination "Azerichess won by resignation"]

1. d4 {[%clk 0:03:00.9]} 1... Nf6 {[%clk 0:02:56.7]} 2. c4 {[%clk 0:03:01.4]}
2... g6 {[%clk 0:02:56.9]} 3. Nc3 {[%clk 0:03:01.4]} 3... d5 {[%clk 0:02:56.5]}
4. Bg5 {[%clk 0:03:00.9]} 4... Ne4 {[%clk 0:02:54.8]} 5. Bf4 {[%clk 0:02:57.4]}
5... Nxc3 {[%clk 0:02:54.4]} 6. bxc3 {[%clk 0:02:57.1]} 6... Bg7 {[%clk
0:02:54.5]} 7. e3 {[%clk 0:02:57.3]} 7... c5 {[%clk 0:02:52.7]} 8. cxd5 {[%clk
0:02:55.8]} 8... Qxd5 {[%clk 0:02:51.6]} 9. Qb3 {[%clk 0:02:55.3]} 9... Qxb3
{[%clk 0:02:46.1]} 10. axb3 {[%clk 0:02:55.5]} 10... cxd4 {[%clk 0:02:44.9]} 11.
cxd4 {[%clk 0:02:54.3]} 11... Nc6 {[%clk 0:02:43.3]} 12. Nf3 {[%clk 0:02:53]}
12... O-O {[%clk 0:02:42.6]} 13. Bc4 {[%clk 0:02:48.7]} 13... Bg4 {[%clk
0:02:39.9]} 14. O-O {[%clk 0:02:36.4]} 14... Bxf3 {[%clk 0:02:38.6]} 15. gxf3
{[%clk 0:02:36.5]} 15... e5 {[%clk 0:02:39.5]} 16. dxe5 {[%clk 0:02:35.9]} 16...
Nxe5 {[%clk 0:02:39.6]} 17. Bxe5 {[%clk 0:02:26.7]} 17... Bxe5 {[%clk
0:02:38.8]} 18. Ra5 {[%clk 0:02:27]} 18... Bc7 {[%clk 0:02:28.6]} 19. Ra2 {[%clk
0:02:26.5]} 19... Rfd8 {[%clk 0:02:22.7]} 20. f4 {[%clk 0:02:24.5]} 20... Rd6
{[%clk 0:02:09.2]} 21. Kg2 {[%clk 0:02:23.7]} 21... Bb6 {[%clk 0:02:07.1]} 22.
Be2 {[%clk 0:02:16]} 22... Rad8 {[%clk 0:02:06.1]} 23. Bf3 {[%clk 0:02:15.8]}
23... Rd2 {[%clk 0:02:05.4]} 24. Rxd2 {[%clk 0:02:12]} 24... Rxd2 {[%clk
0:02:04.4]} 25. Kg3 {[%clk 0:02:12.6]} 25... Rd7 {[%clk 0:01:52.7]} 26. h4
{[%clk 0:02:11.7]} 26... Kg7 {[%clk 0:01:52]} 27. Rc1 {[%clk 0:02:11.1]} 27...
Bd8 {[%clk 0:01:46.3]} 28. h5 {[%clk 0:02:09.2]} 28... b6 {[%clk 0:01:44.8]} 29.
Rc8 {[%clk 0:02:08.1]} 29... Be7 {[%clk 0:01:36.5]} 30. Bc6 {[%clk 0:02:01.7]}
30... Rd3 {[%clk 0:01:32.5]} 31. Rc7 {[%clk 0:01:58.1]} 31... Bc5 {[%clk
0:01:20]} 32. Be8 {[%clk 0:01:55.8]} 32... gxh5 {[%clk 0:01:18.3]} 33. Bxf7
{[%clk 0:01:51.7]} 33... Kh6 {[%clk 0:00:56.8]} 34. Bg8 {[%clk 0:01:48.3]} 34...
h4+ {[%clk 0:00:52.6]} 35. Kxh4 {[%clk 0:01:42.7]} 35... Rd2 {[%clk 0:00:46.9]}
36. Kg3 {[%clk 0:01:39.1]} 36... Rd1 {[%clk 0:00:39.6]} 37. Rxh7+ {[%clk
0:01:35.8]} 37... Kg6 {[%clk 0:00:39.2]} 38. Rxa7 {[%clk 0:01:36]} 38... Kf6
{[%clk 0:00:26.1]} 39. Kf3 {[%clk 0:01:34.4]} 39... Rd2 {[%clk 0:00:21.6]} 40.
Bc4 {[%clk 0:01:33.4]} 40... Rb2 {[%clk 0:00:18]} 41. Rf7+ {[%clk 0:01:33.5]}
41... Kg6 {[%clk 0:00:17.5]} 42. Rb7 {[%clk 0:01:33.4]} 42... Kf6 {[%clk
0:00:16.7]} 43. Rh7 {[%clk 0:01:31.2]} 43... Kg6 {[%clk 0:00:15.5]} 44. Rh1
{[%clk 0:01:31.2]} 44... Kf6 {[%clk 0:00:15.2]} 45. Re1 {[%clk 0:01:31.5]} 45...
b5 {[%clk 0:00:14.6]} 46. Bxb5 {[%clk 0:01:26.3]} 46... Rxb3 {[%clk 0:00:14.7]}
47. Bc6 {[%clk 0:01:25.6]} 47... Rb2 {[%clk 0:00:14.7]} 48. Be4 {[%clk
0:01:23.2]} 48... Ba7 {[%clk 0:00:12.4]} 49. Re2 {[%clk 0:01:23]} 49... Rb4
{[%clk 0:00:11.7]} 50. Ra2 {[%clk 0:01:22.6]} 50... Bb6 {[%clk 0:00:11.7]} 51.
Ra1 {[%clk 0:01:22.8]} 51... Rb2 {[%clk 0:00:10.2]} 52. Rb1 {[%clk 0:01:22.1]}
1-0

[Event "*** Titled Tuesday Blitz"]
[Site "Chess.com"]
[Date "2020.04.07"]
[Round "1"]
[White "Taabling"]
[Black "ElHelvetico"]
[Result "0-1"]
[WhiteElo "2279"]
[BlackElo "2610"]
[TimeControl "180+1"]
[EndTime "13:07:15 PDT"]
[Termination "ElHelvetico won on time"]

1. e4 {[%clk 0:02:55.6]} 1... c5 {[%clk 0:02:59.9]} 2. Nf3 {[%clk 0:02:55.3]}
2... d6 {[%clk 0:02:58.9]} 3. c3 {[%clk 0:02:53.1]} 3... Nf6 {[%clk 0:02:59]} 4.
h3 {[%clk 0:02:52.5]} 4... Nbd7 {[%clk 0:02:50.1]} 5. Bd3 {[%clk 0:02:51.8]}
5... b6 {[%clk 0:02:44.9]} 6. O-O {[%clk 0:02:50.6]} 6... Bb7 {[%clk 0:02:45.2]}
7. Re1 {[%clk 0:02:51.1]} 7... Qc7 {[%clk 0:02:45.7]} 8. Bc2 {[%clk 0:02:51.3]}
8... Rc8 {[%clk 0:02:45.7]} 9. d3 {[%clk 0:02:51.2]} 9... g6 {[%clk 0:02:44.7]}
10. Bf4 {[%clk 0:02:49.1]} 10... Bg7 {[%clk 0:02:45.2]} 11. Nbd2 {[%clk
0:02:48.9]} 11... e5 {[%clk 0:02:37.3]} 12. Be3 {[%clk 0:02:44.8]} 12... O-O
{[%clk 0:02:37.2]} 13. Nf1 {[%clk 0:02:44.3]} 13... d5 {[%clk 0:02:37.3]} 14.
Ng3 {[%clk 0:02:41.7]} 14... d4 {[%clk 0:02:29.2]} 15. Bd2 {[%clk 0:02:33.8]}
15... b5 {[%clk 0:02:29.1]} 16. a3 {[%clk 0:02:32.3]} 16... Rfd8 {[%clk
0:02:19.4]} 17. Rc1 {[%clk 0:02:29.9]} 17... c4 {[%clk 0:02:12.5]} 18. cxd4
{[%clk 0:02:29.4]} 18... exd4 {[%clk 0:02:12.7]} 19. Bb1 {[%clk 0:02:18.3]}
19... Nb6 {[%clk 0:02:01.2]} 20. Ba5 {[%clk 0:02:06.1]} 20... Bh6 {[%clk
0:02:00.6]} 21. Rc2 {[%clk 0:01:51.5]} 21... Qd7 {[%clk 0:01:20.1]} 22. Ne5
{[%clk 0:01:39.5]} 22... Qe6 {[%clk 0:01:18.6]} 23. Ng4 {[%clk 0:01:24.9]} 23...
Nxg4 {[%clk 0:01:16.1]} 24. hxg4 {[%clk 0:01:25.8]} 24... cxd3 {[%clk
0:01:06.8]} 25. Rxc8 {[%clk 0:01:25.3]} 25... Rxc8 {[%clk 0:01:07.7]} 26. Bxb6
{[%clk 0:01:17.3]} 26... axb6 {[%clk 0:00:55.4]} 27. Bxd3 {[%clk 0:01:16.3]}
27... Rc1 {[%clk 0:00:55.1]} 28. Qe2 {[%clk 0:01:15.9]} 28... Rxe1+ {[%clk
0:00:55]} 29. Qxe1 {[%clk 0:01:16.8]} 29... Qxg4 {[%clk 0:00:55.4]} 30. Qb4
{[%clk 0:01:06.9]} 30... Qd1+ {[%clk 0:00:49.9]} 31. Bf1 {[%clk 0:01:06.5]}
31... d3 {[%clk 0:00:44.2]} 32. Qxb5 {[%clk 0:01:05.8]} 32... d2 {[%clk
0:00:44.3]} 33. Qe8+ {[%clk 0:01:01.3]} 33... Bf8 {[%clk 0:00:44.7]} 34. Qd8
{[%clk 0:00:18.7]} 34... h6 {[%clk 0:00:30]} 35. Ne2 {[%clk 0:00:14.9]} 35...
Ba6 {[%clk 0:00:26.6]} 36. Nc3 {[%clk 0:00:12.4]} 36... Qxf1+ {[%clk 0:00:26.3]}
37. Kh2 {[%clk 0:00:13.3]} 37... Qxf2 {[%clk 0:00:23.4]} 38. e5 {[%clk
0:00:10.1]} 38... Bf1 {[%clk 0:00:22.8]} 0-1

[Event "*** Titled Tuesday Blitz"]
[Site "Chess.com"]
[Date "2020.04.07"]
[Round "1"]
[White "RojonR"]
[Black "IMTominho"]
[Result "0-1"]
[WhiteElo "2416"]
[BlackElo "2789"]
[TimeControl "180+1"]
[EndTime "13:07:17 PDT"]
[Termination "IMTominho won on time"]

1. e4 {[%clk 0:02:58.8]} 1... e5 {[%clk 0:02:59.5]} 2. Nf3 {[%clk 0:02:58.2]}
2... Nf6 {[%clk 0:02:59.4]} 3. Nxe5 {[%clk 0:02:57.1]} 3... d6 {[%clk
0:02:59.4]} 4. Nf3 {[%clk 0:02:56.7]} 4... Nxe4 {[%clk 0:02:58.9]} 5. c4 {[%clk
0:02:56.8]} 5... Be7 {[%clk 0:02:56.7]} 6. d4 {[%clk 0:02:56.8]} 6... d5 {[%clk
0:02:55.8]} 7. Bd3 {[%clk 0:02:56.8]} 7... Bb4+ {[%clk 0:02:55.2]} 8. Nbd2
{[%clk 0:02:46.2]} 8... O-O {[%clk 0:02:53]} 9. O-O {[%clk 0:02:44.4]} 9... Nxd2
{[%clk 0:02:52.6]} 10. Bxd2 {[%clk 0:02:44.5]} 10... Bxd2 {[%clk 0:02:53.2]} 11.
Qxd2 {[%clk 0:02:45.4]} 11... dxc4 {[%clk 0:02:53.5]} 12. Bxc4 {[%clk
0:02:46.2]} 12... Nc6 {[%clk 0:02:49.6]} 13. d5 {[%clk 0:02:41.9]} 13... Ne7
{[%clk 0:02:49]} 14. Ne5 {[%clk 0:02:37.3]} 14... Nf5 {[%clk 0:02:38.6]} 15.
Rad1 {[%clk 0:02:30.6]} 15... Nd6 {[%clk 0:02:37.1]} 16. Bd3 {[%clk 0:02:21.7]}
16... Re8 {[%clk 0:02:31.7]} 17. Rfe1 {[%clk 0:02:20.7]} 17... Qf6 {[%clk
0:02:29.7]} 18. Nc4 {[%clk 0:02:07]} 18... Bg4 {[%clk 0:02:23.5]} 19. f3 {[%clk
0:01:57.1]} 19... Bd7 {[%clk 0:02:17.2]} 20. Nxd6 {[%clk 0:01:46.3]} 20... Qxd6
{[%clk 0:02:18.1]} 21. Bb1 {[%clk 0:01:44.3]} 21... g6 {[%clk 0:02:11.7]} 22.
Kh1 {[%clk 0:01:42.6]} 22... b6 {[%clk 0:02:04.1]} 23. Be4 {[%clk 0:01:32.1]}
23... Re7 {[%clk 0:02:00.5]} 24. Re2 {[%clk 0:00:53.5]} 24... Rae8 {[%clk
0:01:53.7]} 25. Rde1 {[%clk 0:00:53.2]} 25... Bb5 {[%clk 0:01:51.4]} 26. Re3
{[%clk 0:00:50.9]} 26... a5 {[%clk 0:01:40]} 27. h3 {[%clk 0:00:42.7]} 27... Qb4
{[%clk 0:01:28.7]} 28. Qd1 {[%clk 0:00:18.7]} 28... Ba6 {[%clk 0:01:03.2]} 29.
g4 {[%clk 0:00:11]} 29... Kf8 {[%clk 0:00:49.6]} 30. g5 {[%clk 0:00:10.5]} 30...
Qd6 {[%clk 0:00:45.5]} 31. Qd2 {[%clk 0:00:07.4]} 31... Qf4 {[%clk 0:00:43]} 32.
Qg2 {[%clk 0:00:06.4]} 32... h6 {[%clk 0:00:40.6]} 33. gxh6 {[%clk 0:00:05.8]}
33... Qxh6 {[%clk 0:00:39.2]} 34. R3e2 {[%clk 0:00:02.2]} 34... Bxe2 {[%clk
0:00:38.4]} 35. Rxe2 {[%clk 0:00:03.1]} 35... f5 {[%clk 0:00:38.3]} 36. d6
{[%clk 0:00:03.1]} 36... cxd6 {[%clk 0:00:37.5]} 37. Rf2 {[%clk 0:00:02.8]}
37... fxe4 {[%clk 0:00:37]} 38. fxe4+ {[%clk 0:00:03.7]} 38... Kg8 {[%clk
0:00:36.5]} 39. e5 {[%clk 0:00:02.9]} 39... dxe5 {[%clk 0:00:35.6]} 40. Qd5+
{[%clk 0:00:02.2]} 40... Kg7 {[%clk 0:00:36]} 41. Qd6 {[%clk 0:00:01.6]} 41...
Qg5 {[%clk 0:00:34.6]} 0-1

[Event "*** Titled Tuesday Blitz"]
[Site "Chess.com"]
[Date "2020.04.07"]
[Round "1"]
[White "BobanBogosavljevic"]
[Black "Unknown_IM"]
[Result "1-0"]
[WhiteElo "2751"]
[BlackElo "2340"]
[TimeControl "180+1"]
[EndTime "13:07:17 PDT"]
[Termination "BobanBogosavljevic won by checkmate"]

1. Nf3 {[%clk 0:03:00.9]} 1... Nf6 {[%clk 0:02:59.6]} 2. c4 {[%clk 0:03:01.8]}
2... c5 {[%clk 0:02:59.6]} 3. g3 {[%clk 0:03:01.6]} 3... Nc6 {[%clk 0:02:59.9]}
4. Bg2 {[%clk 0:03:01.4]} 4... g6 {[%clk 0:03:00.5]} 5. O-O {[%clk 0:03:00.4]}
5... Bg7 {[%clk 0:03:01]} 6. d4 {[%clk 0:03:01.1]} 6... cxd4 {[%clk 0:03:00.5]}
7. Nxd4 {[%clk 0:03:02]} 7... O-O {[%clk 0:03:00.5]} 8. c5 {[%clk 0:03:02.5]}
8... Qa5 {[%clk 0:02:51.7]} 9. Nb3 {[%clk 0:03:01.7]} 9... Qd8 {[%clk
0:02:22.6]} 10. Nc3 {[%clk 0:03:01.1]} 10... a5 {[%clk 0:02:14.2]} 11. Na4
{[%clk 0:02:42.9]} 11... Ng4 {[%clk 0:01:55.5]} 12. h3 {[%clk 0:02:24.8]} 12...
Nge5 {[%clk 0:01:46.6]} 13. Qc2 {[%clk 0:02:22.2]} 13... Nb4 {[%clk 0:01:42.9]}
14. Qd2 {[%clk 0:02:18.5]} 14... Nc4 {[%clk 0:01:36.5]} 15. Qf4 {[%clk 0:02:16]}
15... d5 {[%clk 0:01:35.3]} 16. cxd6 {[%clk 0:02:13.3]} 16... Nxd6 {[%clk
0:01:32.9]} 17. Rd1 {[%clk 0:02:12.6]} 17... Qc7 {[%clk 0:01:24.1]} 18. Be3
{[%clk 0:02:06.8]} 18... Bd7 {[%clk 0:00:46.7]} 19. Nb6 {[%clk 0:01:45.8]} 19...
Rad8 {[%clk 0:00:42.4]} 20. a3 {[%clk 0:01:46.1]} 20... Nc6 {[%clk 0:00:36.7]}
21. Nd5 {[%clk 0:01:33.6]} 21... Qb8 {[%clk 0:00:36.7]} 22. Nc5 {[%clk
0:01:23.3]} 22... e5 {[%clk 0:00:33.3]} 23. Qh4 {[%clk 0:01:21.4]} 23... Nf5
{[%clk 0:00:31.6]} 24. Nf6+ {[%clk 0:01:02.5]} 24... Bxf6 {[%clk 0:00:30.5]} 25.
Qxf6 {[%clk 0:01:02.4]} 25... Nxe3 {[%clk 0:00:25.6]} 26. fxe3 {[%clk
0:00:41.7]} 26... Bf5 {[%clk 0:00:19.9]} 27. g4 {[%clk 0:00:29.3]} 27... Bc2
{[%clk 0:00:18.9]} 28. Rxd8 {[%clk 0:00:12.9]} 28... Rxd8 {[%clk 0:00:13.8]} 29.
Rc1 {[%clk 0:00:12.4]} 29... Rd2 {[%clk 0:00:12.3]} 30. Rf1 {[%clk 0:00:12]}
30... Qe8 {[%clk 0:00:11.1]} 31. Nxb7 {[%clk 0:00:12]} 31... Nd8 {[%clk
0:00:06.1]} 32. Nd6 {[%clk 0:00:11.5]} 32... Qe6 {[%clk 0:00:03.6]} 33. Qxd8+
{[%clk 0:00:11]} 33... Kg7 {[%clk 0:00:02.8]} 34. Ne8+ {[%clk 0:00:11.3]} 34...
Kh6 {[%clk 0:00:02.3]} 35. Qh4# {[%clk 0:00:11.2]} 1-0

[Event "*** Titled Tuesday Blitz"]
[Site "Chess.com"]
[Date "2020.04.07"]
[Round "1"]
[White "vizumatv4hoda"]
[Black "The_Machine04"]
[Result "1-0"]
[WhiteElo "2738"]
[BlackElo "2390"]
[TimeControl "180+1"]
[EndTime "13:07:18 PDT"]
[Termination "vizumatv4hoda won by checkmate"]

1. e4 {[%clk 0:03:00.9]} 1... d6 {[%clk 0:02:59.8]} 2. d4 {[%clk 0:03:00.7]}
2... Nf6 {[%clk 0:02:59.8]} 3. Nc3 {[%clk 0:03:00.4]} 3... e5 {[%clk 0:02:59.6]}
4. dxe5 {[%clk 0:03:00.1]} 4... dxe5 {[%clk 0:03:00.5]} 5. Qxd8+ {[%clk
0:03:00.6]} 5... Kxd8 {[%clk 0:03:01.3]} 6. f4 {[%clk 0:03:01.2]} 6... Bb4
{[%clk 0:02:59.2]} 7. Bd2 {[%clk 0:02:58.1]} 7... exf4 {[%clk 0:02:18.4]} 8.
O-O-O {[%clk 0:02:54.2]} 8... Nbd7 {[%clk 0:02:18.2]} 9. Nf3 {[%clk 0:02:52.8]}
9... Re8 {[%clk 0:02:11.7]} 10. Bc4 {[%clk 0:02:52.1]} 10... Ke7 {[%clk
0:02:07.2]} 11. e5 {[%clk 0:02:46.7]} 11... Bxc3 {[%clk 0:02:00.1]} 12. Bxc3
{[%clk 0:02:47.6]} 12... Ng4 {[%clk 0:02:00]} 13. Rd4 {[%clk 0:02:36.6]} 13...
Ne3 {[%clk 0:01:20.8]} 14. Bb3 {[%clk 0:02:36.6]} 14... Nc5 {[%clk 0:01:04.9]}
15. Bb4 {[%clk 0:02:35.3]} 15... b6 {[%clk 0:01:04.9]} 16. Rxf4 {[%clk
0:02:34.1]} 16... Be6 {[%clk 0:01:03.5]} 17. Nd4 {[%clk 0:02:23.5]} 17... a5
{[%clk 0:00:53.4]} 18. Ba3 {[%clk 0:02:23]} 18... a4 {[%clk 0:00:43.2]} 19. Bxe6
{[%clk 0:02:18.9]} 19... fxe6 {[%clk 0:00:43]} 20. Rf3 {[%clk 0:02:04.4]} 20...
Nc4 {[%clk 0:00:37.6]} 21. Bxc5+ {[%clk 0:01:59.4]} 21... bxc5 {[%clk
0:00:37.8]} 22. Nb5 {[%clk 0:02:00.3]} 22... Nxe5 {[%clk 0:00:35.6]} 23. Rg3
{[%clk 0:01:59.2]} 23... Rab8 {[%clk 0:00:26.2]} 24. Nxc7 {[%clk 0:01:57]} 24...
Rec8 {[%clk 0:00:25.3]} 25. Re1 {[%clk 0:01:53.7]} 25... Rxc7 {[%clk 0:00:20.6]}
26. Rxe5 {[%clk 0:01:51.8]} 26... Kf6 {[%clk 0:00:19.9]} 27. Re4 {[%clk
0:01:49.1]} 27... g6 {[%clk 0:00:17.9]} 28. Rxa4 {[%clk 0:01:46.9]} 28... Rd8
{[%clk 0:00:16.2]} 29. Rc4 {[%clk 0:01:45.8]} 29... Rcd7 {[%clk 0:00:16.1]} 30.
b3 {[%clk 0:01:44.5]} 30... Rd1+ {[%clk 0:00:16]} 31. Kb2 {[%clk 0:01:44.4]}
31... R8d5 {[%clk 0:00:16.5]} 32. a4 {[%clk 0:01:41.1]} 32... Re1 {[%clk
0:00:14.4]} 33. a5 {[%clk 0:01:41]} 33... Ree5 {[%clk 0:00:12.2]} 34. Rf4+
{[%clk 0:01:39.7]} 34... Ke7 {[%clk 0:00:11.9]} 35. Ra4 {[%clk 0:01:40.6]} 35...
Rd7 {[%clk 0:00:11.7]} 36. Rh3 {[%clk 0:01:38.5]} 36... h5 {[%clk 0:00:11.3]}
37. a6 {[%clk 0:01:38]} 37... Ra7 {[%clk 0:00:11]} 38. Rg3 {[%clk 0:01:36.9]}
38... g5 {[%clk 0:00:11.3]} 39. h4 {[%clk 0:01:36]} 39... g4 {[%clk 0:00:11.4]}
40. Rd3 {[%clk 0:01:34.8]} 40... Rd5 {[%clk 0:00:11.4]} 41. Rxd5 {[%clk
0:01:26.8]} 41... exd5 {[%clk 0:00:12.3]} 42. Kc3 {[%clk 0:01:27.4]} 42... Kd6
{[%clk 0:00:12.4]} 43. Kd3 {[%clk 0:01:25.6]} 43... Kc6 {[%clk 0:00:12.4]} 44.
Ke3 {[%clk 0:01:25.6]} 44... Kb6 {[%clk 0:00:09.1]} 45. Kf4 {[%clk 0:01:25.9]}
45... Rg7 {[%clk 0:00:04.6]} 46. a7 {[%clk 0:01:25]} 46... Rxa7 {[%clk
0:00:05.1]} 47. Rxa7 {[%clk 0:01:25.9]} 47... Kxa7 {[%clk 0:00:05.9]} 48. Kg5
{[%clk 0:01:26.6]} 48... Kb6 {[%clk 0:00:06.3]} 49. Kxh5 {[%clk 0:01:26.9]}
49... Kb5 {[%clk 0:00:07]} 50. Kxg4 {[%clk 0:01:27.1]} 50... Kb4 {[%clk
0:00:07.9]} 51. h5 {[%clk 0:01:26.9]} 51... Kc3 {[%clk 0:00:08.8]} 52. h6 {[%clk
0:01:27.3]} 52... Kxc2 {[%clk 0:00:09.7]} 53. h7 {[%clk 0:01:27.7]} 53... d4
{[%clk 0:00:10.6]} 54. h8=Q {[%clk 0:01:28.1]} 54... d3 {[%clk 0:00:11.5]} 55.
Qh7 {[%clk 0:01:28.2]} 55... Kxb3 {[%clk 0:00:10]} 56. Qxd3+ {[%clk 0:01:28.1]}
56... Kb4 {[%clk 0:00:10.9]} 57. Kf4 {[%clk 0:01:28.4]} 57... c4 {[%clk
0:00:11.8]} 58. Qd4 {[%clk 0:01:28.9]} 58... Kb3 {[%clk 0:00:11.7]} 59. g4
{[%clk 0:01:29.8]} 59... c3 {[%clk 0:00:12.2]} 60. Qb6+ {[%clk 0:01:30]} 60...
Ka2 {[%clk 0:00:12.1]} 61. Qc5 {[%clk 0:01:30.3]} 61... Kb2 {[%clk 0:00:11.7]}
62. Qb4+ {[%clk 0:01:30.5]} 62... Kc2 {[%clk 0:00:11.5]} 63. Ke3 {[%clk
0:01:30.8]} 63... Kd1 {[%clk 0:00:10.4]} 64. Qb3+ {[%clk 0:01:30]} 64... c2
{[%clk 0:00:10.3]} 65. Kd3 {[%clk 0:01:29.7]} 65... Ke1 {[%clk 0:00:10.5]} 66.
Qxc2 {[%clk 0:01:29.8]} 66... Kf1 {[%clk 0:00:11]} 67. g5 {[%clk 0:01:30.2]}
67... Kg1 {[%clk 0:00:11.5]} 68. g6 {[%clk 0:01:30.6]} 68... Kh1 {[%clk
0:00:12.1]} 69. g7 {[%clk 0:01:30.9]} 69... Kg1 {[%clk 0:00:13]} 70. g8=Q+
{[%clk 0:01:31.2]} 70... Kh1 {[%clk 0:00:13.9]} 71. Qa8+ {[%clk 0:01:30.8]}
71... Kg1 {[%clk 0:00:13.9]} 72. Qa1# {[%clk 0:01:31.3]} 1-0

[Event "*** Titled Tuesday Blitz"]
[Site "Chess.com"]
[Date "2020.04.07"]
[Round "1"]
[White "josiwales"]
[Black "Ariadna_Atreides"]
[Result "1-0"]
[WhiteElo "2516"]
[BlackElo "2019"]
[TimeControl "180+1"]
[EndTime "13:07:18 PDT"]
[Termination "josiwales won on time"]

1. e4 {[%clk 0:03:00.8]} 1... c5 {[%clk 0:02:59.1]} 2. Nc3 {[%clk 0:02:59.8]}
2... Nc6 {[%clk 0:02:57.8]} 3. g3 {[%clk 0:03:00.7]} 3... g6 {[%clk 0:02:56.8]}
4. Bg2 {[%clk 0:03:01.6]} 4... Bg7 {[%clk 0:02:57]} 5. d3 {[%clk 0:03:02.5]}
5... e6 {[%clk 0:02:54.2]} 6. Be3 {[%clk 0:03:03.4]} 6... d6 {[%clk 0:02:49.2]}
7. Qd2 {[%clk 0:03:03.6]} 7... Nd4 {[%clk 0:02:41.3]} 8. Nd1 {[%clk 0:03:02.6]}
8... Ne7 {[%clk 0:02:27.5]} 9. c3 {[%clk 0:03:01.6]} 9... Ndc6 {[%clk
0:02:27.5]} 10. Bh6 {[%clk 0:03:01.8]} 10... Bxh6 {[%clk 0:02:10.7]} 11. Qxh6
{[%clk 0:02:59.2]} 11... Ne5 {[%clk 0:02:07]} 12. Qd2 {[%clk 0:02:54.1]} 12...
Qa5 {[%clk 0:01:53.5]} 13. f4 {[%clk 0:02:51.7]} 13... N5c6 {[%clk 0:01:51.4]}
14. Ne2 {[%clk 0:02:51.9]} 14... Bd7 {[%clk 0:01:49.9]} 15. Ne3 {[%clk
0:02:52.1]} 15... Qc7 {[%clk 0:01:45.4]} 16. d4 {[%clk 0:02:50.8]} 16... cxd4
{[%clk 0:01:38.4]} 17. Nxd4 {[%clk 0:02:46]} 17... O-O-O {[%clk 0:01:21.5]} 18.
Nb5 {[%clk 0:02:43.1]} 18... Qb6 {[%clk 0:01:16.6]} 19. Nc4 {[%clk 0:02:37.6]}
19... Qa6 {[%clk 0:01:12.7]} 20. Ncxd6+ {[%clk 0:02:19.3]} 20... Kb8 {[%clk
0:01:10.5]} 21. a4 {[%clk 0:02:19]} 21... Bc8 {[%clk 0:01:05.5]} 22. e5 {[%clk
0:02:11.5]} 22... Nf5 {[%clk 0:01:02.1]} 23. Qe2 {[%clk 0:01:57.9]} 23... Rhf8
{[%clk 0:00:44.4]} 24. b4 {[%clk 0:01:47.7]} 24... f6 {[%clk 0:00:35.2]} 25. O-O
{[%clk 0:01:46.6]} 25... Nxd6 {[%clk 0:00:31.9]} 26. exd6 {[%clk 0:01:46.6]}
26... Rxd6 {[%clk 0:00:31]} 27. a5 {[%clk 0:01:12.9]} 27... Rfd8 {[%clk
0:00:27.1]} 28. Ra2 {[%clk 0:00:55.1]} 28... Ne7 {[%clk 0:00:15.7]} 29. Nxd6
{[%clk 0:00:48.7]} 29... Qxe2 {[%clk 0:00:12.6]} 30. Rxe2 {[%clk 0:00:47.8]}
30... Rxd6 {[%clk 0:00:13.2]} 31. c4 {[%clk 0:00:43.8]} 31... Rd4 {[%clk
0:00:11.2]} 32. Re4 {[%clk 0:00:36.4]} 32... Rd2 {[%clk 0:00:09.3]} 33. Rfe1
{[%clk 0:00:35.1]} 33... Nc6 {[%clk 0:00:06]} 34. a6 {[%clk 0:00:25.1]} 34...
Nxb4 {[%clk 0:00:04.7]} 35. axb7 {[%clk 0:00:16.9]} 35... Bxb7 {[%clk
0:00:04.5]} 36. R4e2 {[%clk 0:00:17.5]} 36... Rxe2 {[%clk 0:00:03.5]} 37. Rxe2
{[%clk 0:00:18.4]} 37... Bxg2 {[%clk 0:00:01.2]} 38. Kxg2 {[%clk 0:00:18.4]} 1-0